[Event "*** Titled Tuesday 3|2 Blitz"]
[Site "Chess.com"]
[Date "2017.03.07"]
[Round "2"]
[White "kikydu96"]
[Black "RobertoJBM"]
[Result "1-0"]
[WhiteElo "2320"]
[BlackElo "2391"]
[TimeControl "180+2"]
[EndTime "13:24:56 PST"]
[Termination "kikydu96 won on time"]

1. e4 {[%clk 0:03:02]} 1... c6 {[%clk 0:03:02]} 2. d4 {[%clk 0:03:00.3]} 2... d5
{[%clk 0:03:03.1]} 3. Nc3 {[%clk 0:03:00.9]} 3... dxe4 {[%clk 0:03:03.9]} 4.
Nxe4 {[%clk 0:03:02.8]} 4... Nd7 {[%clk 0:03:04.6]} 5. Ng5 {[%clk 0:03:01.5]}
5... h6 {[%clk 0:03:02.3]} 6. Ne6 {[%clk 0:02:28.8]} 6... Qb6 {[%clk 0:03:02.3]}
7. Nxf8 {[%clk 0:02:27.7]} 7... Nxf8 {[%clk 0:03:02.5]} 8. Nf3 {[%clk
0:02:20.5]} 8... Bg4 {[%clk 0:03:02.5]} 9. c3 {[%clk 0:02:16]} 9... Nf6 {[%clk
0:03:03.5]} 10. Bd3 {[%clk 0:02:14.8]} 10... N8d7 {[%clk 0:03:03.9]} 11. h3
{[%clk 0:02:15.4]} 11... Bxf3 {[%clk 0:03:03.3]} 12. Qxf3 {[%clk 0:02:17.3]}
12... e5 {[%clk 0:03:03.5]} 13. dxe5 {[%clk 0:02:11.5]} 13... Nxe5 {[%clk
0:03:05.4]} 14. Qe2 {[%clk 0:02:12.6]} 14... O-O {[%clk 0:03:05.8]} 15. O-O
{[%clk 0:02:02]} 15... Nxd3 {[%clk 0:03:05.1]} 16. Qxd3 {[%clk 0:02:03.9]} 16...
Rad8 {[%clk 0:03:06.5]} 17. Qf3 {[%clk 0:02:03.7]} 17... Rd6 {[%clk 0:03:01.1]}
18. Bf4 {[%clk 0:02:02.4]} 18... Re6 {[%clk 0:03:00.8]} 19. b3 {[%clk
0:01:53.1]} 19... Rfe8 {[%clk 0:02:54.2]} 20. Rad1 {[%clk 0:01:51.5]} 20... Qa5
{[%clk 0:02:40.1]} 21. a4 {[%clk 0:01:49.9]} 21... Qf5 {[%clk 0:02:39]} 22. c4
{[%clk 0:01:26.4]} 22... g5 {[%clk 0:02:23.6]} 23. Be3 {[%clk 0:01:22.9]} 23...
Qxf3 {[%clk 0:02:24.4]} 24. gxf3 {[%clk 0:01:24.8]} 24... a6 {[%clk 0:02:23.9]}
25. Kh2 {[%clk 0:01:19]} 25... Nh5 {[%clk 0:02:19.3]} 26. Rd7 {[%clk 0:01:08.8]}
26... R6e7 {[%clk 0:02:20]} 27. Rfd1 {[%clk 0:01:08.2]} 27... Nf6 {[%clk
0:02:20.1]} 28. Rxe7 {[%clk 0:00:52.7]} 28... Rxe7 {[%clk 0:02:22]} 29. h4
{[%clk 0:00:51.9]} 29... Nh7 {[%clk 0:01:53.4]} 30. Rg1 {[%clk 0:00:47.7]} 30...
f6 {[%clk 0:01:46.4]} 31. f4 {[%clk 0:00:48.3]} 31... Rg7 {[%clk 0:01:45.4]} 32.
f5 {[%clk 0:00:41.3]} 32... Re7 {[%clk 0:01:38.8]} 33. Rd1 {[%clk 0:00:36.5]}
33... Nf8 {[%clk 0:01:36.2]} 34. Kg3 {[%clk 0:00:35.3]} 34... Rd7 {[%clk
0:01:36.3]} 35. Rxd7 {[%clk 0:00:32.6]} 35... Nxd7 {[%clk 0:01:38.2]} 36. Bd4
{[%clk 0:00:33.9]} 36... h5 {[%clk 0:01:35.3]} 37. hxg5 {[%clk 0:00:21.7]} 37...
fxg5 {[%clk 0:01:37.2]} 38. Be3 {[%clk 0:00:23.1]} 38... Kf7 {[%clk 0:00:33.9]}
39. Bxg5 {[%clk 0:00:23.1]} 39... Nc5 {[%clk 0:00:34.6]} 40. b4 {[%clk 0:00:19]}
40... Nxa4 {[%clk 0:00:32.8]} 41. Kh4 {[%clk 0:00:19.7]} 41... Nb2 {[%clk
0:00:33.1]} 42. c5 {[%clk 0:00:20.6]} 42... Nc4 {[%clk 0:00:34]} 43. Kxh5 {[%clk
0:00:18.8]} 43... Ne5 {[%clk 0:00:34.8]} 44. Bd2 {[%clk 0:00:12.4]} 44... Nd3
{[%clk 0:00:31.8]} 45. f3 {[%clk 0:00:09.1]} 45... Ne5 {[%clk 0:00:28.2]} 46. f4
{[%clk 0:00:05.3]} 46... Nc4 {[%clk 0:00:28.8]} 47. Bc3 {[%clk 0:00:05.7]} 47...
Ne3 {[%clk 0:00:29.8]} 48. Kg5 {[%clk 0:00:06.3]} 48... Nd5 {[%clk 0:00:31.7]}
49. Bd2 {[%clk 0:00:07.9]} 49... Nf6 {[%clk 0:00:31.8]} 50. Be1 {[%clk
0:00:07.4]} 50... Ne4+ {[%clk 0:00:32.2]} 51. Kg4 {[%clk 0:00:08.5]} 51... Nf6+
{[%clk 0:00:31.5]} 52. Kf3 {[%clk 0:00:09.4]} 52... Nd5 {[%clk 0:00:30.9]} 53.
Ke4 {[%clk 0:00:10.4]} 53... Ke7 {[%clk 0:00:31.4]} 54. Ke5 {[%clk 0:00:11]}
54... Kf7 {[%clk 0:00:28.8]} 55. Kd6 {[%clk 0:00:09]} 55... Nxf4 {[%clk
0:00:29.1]} 56. Kc7 {[%clk 0:00:09.2]} 56... Nd3 {[%clk 0:00:30.3]} 57. Bc3
{[%clk 0:00:10.1]} 57... a5 {[%clk 0:00:29.2]} 58. bxa5 {[%clk 0:00:10.5]} 58...
Nxc5 {[%clk 0:00:30.6]} 59. Kb6 {[%clk 0:00:11.5]} 59... Na4+ {[%clk 0:00:30.3]}
60. Kxb7 {[%clk 0:00:12.6]} 60... Nxc3 {[%clk 0:00:32.2]} 61. Kxc6 {[%clk
0:00:11.2]} 61... Na2 {[%clk 0:00:31.9]} 62. Kc5 {[%clk 0:00:10.7]} 62... Nc3
{[%clk 0:00:28.1]} 63. a6 {[%clk 0:00:11.2]} 63... Ne4+ {[%clk 0:00:29.2]} 64.
Kc6 {[%clk 0:00:12.4]} 64... Ng3 {[%clk 0:00:26.1]} 65. a7 {[%clk 0:00:13.1]}
65... Nxf5 {[%clk 0:00:28]} 66. a8=Q {[%clk 0:00:13.5]} 66... Nd4+ {[%clk
0:00:29.9]} 67. Kd5 {[%clk 0:00:14.4]} 67... Ne6 {[%clk 0:00:31.2]} 68. Qb7+
{[%clk 0:00:13.6]} 68... Nc7+ {[%clk 0:00:31.5]} 69. Qxc7+ {[%clk 0:00:14.5]}
1-0

[Event "*** Titled Tuesday 3|2 Blitz"]
[Site "Chess.com"]
[Date "2017.03.07"]
[Round "2"]
[White "Malev212"]
[Black "DeviatkinAndrey"]
[Result "1-0"]
[WhiteElo "2473"]
[BlackElo "2544"]
[TimeControl "180+2"]
[EndTime "13:25:19 PST"]
[Termination "Malev212 won by resignation"]

1. d4 {[%clk 0:03:02]} 1... d5 {[%clk 0:02:59.4]} 2. c4 {[%clk 0:03:02.5]} 2...
c6 {[%clk 0:03:00.1]} 3. Nc3 {[%clk 0:03:02.4]} 3... Nf6 {[%clk 0:02:59.8]} 4.
e3 {[%clk 0:03:03.3]} 4... a6 {[%clk 0:02:59.7]} 5. Nf3 {[%clk 0:02:52.3]} 5...
e6 {[%clk 0:02:58]} 6. Bd2 {[%clk 0:02:45.8]} 6... c5 {[%clk 0:02:56.7]} 7. b3
{[%clk 0:02:35.2]} 7... Nc6 {[%clk 0:02:56.2]} 8. cxd5 {[%clk 0:02:30.8]} 8...
exd5 {[%clk 0:02:52.8]} 9. Be2 {[%clk 0:02:31.6]} 9... cxd4 {[%clk 0:02:29.3]}
10. Nxd4 {[%clk 0:02:31.5]} 10... Nxd4 {[%clk 0:02:27]} 11. exd4 {[%clk
0:02:31.9]} 11... Bd6 {[%clk 0:02:25.8]} 12. O-O {[%clk 0:02:32.1]} 12... h6
{[%clk 0:02:25.7]} 13. Bf3 {[%clk 0:02:24.1]} 13... Be6 {[%clk 0:02:25.7]} 14.
Ne2 {[%clk 0:02:21.6]} 14... Bg4 {[%clk 0:02:18.6]} 15. Bxg4 {[%clk 0:02:14]}
15... Nxg4 {[%clk 0:02:19.1]} 16. Bf4 {[%clk 0:02:08.9]} 16... O-O {[%clk
0:02:19.3]} 17. Qd3 {[%clk 0:02:02.9]} 17... Re8 {[%clk 0:02:18.9]} 18. Bxd6
{[%clk 0:01:55.4]} 18... Qxd6 {[%clk 0:02:19.1]} 19. Ng3 {[%clk 0:01:56.9]}
19... g6 {[%clk 0:02:14.5]} 20. Rac1 {[%clk 0:01:53.3]} 20... Rac8 {[%clk
0:02:12]} 21. Qd2 {[%clk 0:01:46.9]} 21... Kg7 {[%clk 0:02:09.5]} 22. f3 {[%clk
0:01:41.1]} 22... Nf6 {[%clk 0:01:56.2]} 23. Rfe1 {[%clk 0:01:41.4]} 23... b6
{[%clk 0:01:50.6]} 24. Nf1 {[%clk 0:01:41.2]} 24... Rxe1 {[%clk 0:01:29.2]} 25.
Rxe1 {[%clk 0:01:40.9]} 25... Qc7 {[%clk 0:01:24.9]} 26. Ne3 {[%clk 0:01:40.1]}
26... Qc3 {[%clk 0:01:24.7]} 27. Rd1 {[%clk 0:01:35.3]} 27... Qxd2 {[%clk
0:01:11]} 28. Rxd2 {[%clk 0:01:35.5]} 28... h5 {[%clk 0:01:10.5]} 29. h4 {[%clk
0:01:35.2]} 29... Kf8 {[%clk 0:01:09.9]} 30. Kf2 {[%clk 0:01:35.7]} 30... Ke7
{[%clk 0:01:10.7]} 31. Rd1 {[%clk 0:01:36.5]} 31... Kd6 {[%clk 0:01:11]} 32. Ke2
{[%clk 0:01:37]} 32... a5 {[%clk 0:01:10.3]} 33. Kd3 {[%clk 0:01:37.4]} 33... b5
{[%clk 0:01:11.1]} 34. a3 {[%clk 0:01:35.7]} 34... b4 {[%clk 0:01:08.3]} 35.
axb4 {[%clk 0:01:35.4]} 35... axb4 {[%clk 0:01:09.5]} 36. Kd2 {[%clk 0:01:30.9]}
36... Ra8 {[%clk 0:00:53]} 37. Nc2 {[%clk 0:01:28.3]} 37... Ra2 {[%clk
0:00:53.8]} 38. Rb1 {[%clk 0:01:26.6]} 38... Ng8 {[%clk 0:00:47.1]} 39. Kd3
{[%clk 0:01:24.5]} 39... Ne7 {[%clk 0:00:48.1]} 40. g4 {[%clk 0:01:24.5]} 40...
hxg4 {[%clk 0:00:37]} 41. fxg4 {[%clk 0:01:25.2]} 41... f5 {[%clk 0:00:37.7]}
42. h5 {[%clk 0:01:19.8]} 42... fxg4 {[%clk 0:00:36.8]} 43. h6 {[%clk
0:01:20.3]} 43... Ra8 {[%clk 0:00:37.6]} 44. Nxb4 {[%clk 0:01:18.2]} 44... Rh8
{[%clk 0:00:38.2]} 45. Rg1 {[%clk 0:01:17.6]} 45... Rxh6 {[%clk 0:00:38]} 46.
Rxg4 {[%clk 0:01:18.3]} 46... Nf5 {[%clk 0:00:39.4]} 47. Nc2 {[%clk 0:01:15.3]}
47... Ke6 {[%clk 0:00:37.6]} 48. b4 {[%clk 0:01:15.1]} 48... Kf6 {[%clk
0:00:38.5]} 49. Rg1 {[%clk 0:01:11.3]} 49... Rh3+ {[%clk 0:00:39.1]} 50. Kd2
{[%clk 0:01:11.9]} 50... Rb3 {[%clk 0:00:36]} 51. Ra1 {[%clk 0:01:12.3]} 51...
Ng3 {[%clk 0:00:29.3]} 52. Ra5 {[%clk 0:01:07.9]} 52... Ne4+ {[%clk 0:00:28.9]}
53. Kc1 {[%clk 0:01:07.4]} 53... g5 {[%clk 0:00:25.3]} 54. Rxd5 {[%clk
0:01:03.6]} 54... g4 {[%clk 0:00:26.7]} 55. Re5 {[%clk 0:01:04]} 55... Nf2
{[%clk 0:00:25]} 56. Kd2 {[%clk 0:01:00.4]} 56... g3 {[%clk 0:00:25.5]} 57. Ne3
{[%clk 0:00:59.1]} 57... Kg6 {[%clk 0:00:24.4]} 58. Re8 {[%clk 0:00:58.4]} 58...
Rxb4 {[%clk 0:00:22]} 59. d5 {[%clk 0:00:58.8]} 59... Kf7 {[%clk 0:00:22]} 60.
Re5 {[%clk 0:00:57.6]} 60... Re4 {[%clk 0:00:11.6]} 61. Rg5 {[%clk 0:00:52.2]}
61... Ke7 {[%clk 0:00:12.4]} 62. Rxg3 {[%clk 0:00:50.8]} 62... Rd4+ {[%clk
0:00:12.8]} 63. Kc3 {[%clk 0:00:47.9]} 63... Ne4+ {[%clk 0:00:09.3]} 64. Kxd4
{[%clk 0:00:48.5]} 64... Nxg3 {[%clk 0:00:10.6]} 65. Ke5 {[%clk 0:00:49.2]}
65... Kd7 {[%clk 0:00:11.5]} 66. Nc4 {[%clk 0:00:48.8]} 66... Ne2 {[%clk
0:00:11.2]} 67. Nb6+ {[%clk 0:00:48.7]} 67... Kc7 {[%clk 0:00:11.3]} 68. Na4
{[%clk 0:00:44.6]} 68... Kd7 {[%clk 0:00:11.2]} 69. Nc5+ {[%clk 0:00:44.6]}
69... Kc7 {[%clk 0:00:11.9]} 70. d6+ {[%clk 0:00:45.4]} 70... Kc6 {[%clk
0:00:08.5]} 71. Ne4 {[%clk 0:00:42.9]} 71... Kd7 {[%clk 0:00:08.4]} 72. Nf6+
{[%clk 0:00:42.5]} 72... Kd8 {[%clk 0:00:09.3]} 73. Nd5 {[%clk 0:00:40.3]} 73...
Ng3 {[%clk 0:00:10.5]} 74. Nf4 {[%clk 0:00:35.4]} 74... Kd7 {[%clk 0:00:10.3]}
75. Ne6 {[%clk 0:00:31.5]} 75... Nf1 {[%clk 0:00:08.7]} 76. Nc5+ {[%clk
0:00:30.5]} 76... Kd8 {[%clk 0:00:09.7]} 77. Ke6 {[%clk 0:00:30.7]} 77... Ne3
{[%clk 0:00:09.4]} 78. d7 {[%clk 0:00:31]} 78... Kc7 {[%clk 0:00:09.9]} 79. Nb7
{[%clk 0:00:31.2]} 1-0

[Event "*** Titled Tuesday 3|2 Blitz"]
[Site "Chess.com"]
[Date "2017.03.07"]
[Round "2"]
[White "Blitzstream"]
[Black "igorkovalenko"]
[Result "0-1"]
[WhiteElo "2493"]
[BlackElo "2683"]
[TimeControl "180+2"]
[EndTime "13:25:39 PST"]
[Termination "igorkovalenko won by resignation"]

1. d4 {[%clk 0:03:02]} 1... Nf6 {[%clk 0:03:00.5]} 2. Bg5 {[%clk 0:03:02.1]}
2... e6 {[%clk 0:03:00.8]} 3. e4 {[%clk 0:03:01.6]} 3... h6 {[%clk 0:03:01.8]}
4. Bxf6 {[%clk 0:03:02.6]} 4... Qxf6 {[%clk 0:03:03.7]} 5. c3 {[%clk 0:03:03.9]}
5... d5 {[%clk 0:03:05]} 6. Nd2 {[%clk 0:03:02.7]} 6... Qd8 {[%clk 0:03:05.5]}
7. Ngf3 {[%clk 0:03:03.5]} 7... Be7 {[%clk 0:03:05.4]} 8. Bd3 {[%clk 0:03:03.2]}
8... O-O {[%clk 0:03:03.6]} 9. O-O {[%clk 0:03:03.9]} 9... c5 {[%clk 0:03:04.7]}
10. Qe2 {[%clk 0:02:41.1]} 10... Nc6 {[%clk 0:03:05.1]} 11. Rad1 {[%clk
0:02:29.1]} 11... cxd4 {[%clk 0:03:05.5]} 12. cxd4 {[%clk 0:02:29.3]} 12... Nb4
{[%clk 0:02:55.5]} 13. Bb1 {[%clk 0:02:29.3]} 13... b6 {[%clk 0:02:56.4]} 14.
exd5 {[%clk 0:02:10.4]} 14... exd5 {[%clk 0:02:57.3]} 15. Rfe1 {[%clk
0:02:03.5]} 15... Bd6 {[%clk 0:02:55.4]} 16. a3 {[%clk 0:01:57.1]} 16... Ba6
{[%clk 0:02:53.4]} 17. Qe3 {[%clk 0:01:57]} 17... Nc6 {[%clk 0:02:53.7]} 18. Ne5
{[%clk 0:01:56.5]} 18... Rc8 {[%clk 0:02:51]} 19. Ndf3 {[%clk 0:01:53.2]} 19...
Rc7 {[%clk 0:02:49.5]} 20. Qf4 {[%clk 0:01:48.5]} 20... Ne7 {[%clk 0:02:41.8]}
21. Qg4 {[%clk 0:01:26.1]} 21... Bc8 {[%clk 0:02:41.8]} 22. Qh5 {[%clk 0:01:24]}
22... Be6 {[%clk 0:02:34.1]} 23. g4 {[%clk 0:01:21]} 23... f6 {[%clk 0:02:22.4]}
24. Ng6 {[%clk 0:01:15.8]} 24... Bf7 {[%clk 0:02:23.9]} 25. Nfh4 {[%clk
0:01:08.7]} 25... Re8 {[%clk 0:02:23.9]} 26. Kg2 {[%clk 0:00:56.4]} 26... Qc8
{[%clk 0:01:58.5]} 27. Re3 {[%clk 0:00:51.2]} 27... Bf4 {[%clk 0:01:50.4]} 28.
Rxe7 {[%clk 0:00:38.1]} 28... Rcxe7 {[%clk 0:01:50.4]} 29. Nxe7+ {[%clk
0:00:39.1]} 29... Rxe7 {[%clk 0:01:51.7]} 30. Qf5 {[%clk 0:00:40.4]} 30... Qxf5
{[%clk 0:01:51.6]} 31. Nxf5 {[%clk 0:00:41.1]} 31... Rc7 {[%clk 0:01:49.8]} 32.
Kf3 {[%clk 0:00:40.4]} 32... Bc1 {[%clk 0:01:50.6]} 33. Ne7+ {[%clk 0:00:24.3]}
33... Kf8 {[%clk 0:01:47.7]} 34. Ng6+ {[%clk 0:00:25.2]} 34... Ke8 {[%clk
0:01:40.1]} 35. Nh8 {[%clk 0:00:16.2]} 35... Bxb2 {[%clk 0:01:39.4]} 36. Nxf7
{[%clk 0:00:15.8]} 36... Kxf7 {[%clk 0:01:39.8]} 37. Rd3 {[%clk 0:00:15.2]}
37... Ke6 {[%clk 0:01:35.1]} 38. Ke3 {[%clk 0:00:14.3]} 38... Kd6 {[%clk
0:01:35.6]} 39. Rb3 {[%clk 0:00:14.4]} 39... Bc1+ {[%clk 0:01:33.2]} 40. Ke2
{[%clk 0:00:13]} 40... Bf4 {[%clk 0:01:34]} 41. Bf5 {[%clk 0:00:13.9]} 41...
Bxh2 {[%clk 0:01:34.2]} 42. Re3 {[%clk 0:00:13.7]} 42... Re7 {[%clk 0:01:33.1]}
43. Rxe7 {[%clk 0:00:14]} 43... Kxe7 {[%clk 0:01:35]} 44. Kd3 {[%clk 0:00:15.5]}
44... Bd6 {[%clk 0:01:34.4]} 45. a4 {[%clk 0:00:16.5]} 45... Bb4 {[%clk
0:01:36]} 46. f3 {[%clk 0:00:17.5]} 46... Kf7 {[%clk 0:01:37.1]} 47. Bd7 {[%clk
0:00:18.1]} 47... g6 {[%clk 0:01:37.8]} 48. Bc6 {[%clk 0:00:19.3]} 48... Ke6
{[%clk 0:01:39.3]} 49. Be8 {[%clk 0:00:20.6]} 49... g5 {[%clk 0:01:39.8]} 50.
Bg6 {[%clk 0:00:22.2]} 50... Kd6 {[%clk 0:01:38.8]} 51. Be8 {[%clk 0:00:23]}
51... Be1 {[%clk 0:01:38.6]} 52. Bb5 {[%clk 0:00:24.2]} 52... Ke6 {[%clk
0:01:38.1]} 53. Ba6 {[%clk 0:00:24.8]} 53... Kd6 {[%clk 0:01:34.4]} 54. Bb5
{[%clk 0:00:25.6]} 54... Bb4 {[%clk 0:01:31.3]} 55. Be8 {[%clk 0:00:25.6]} 55...
Ke6 {[%clk 0:01:31.7]} 56. Bg6 {[%clk 0:00:25.2]} 56... Bf8 {[%clk 0:01:33.2]}
57. Bf5+ {[%clk 0:00:25.4]} 57... Kd6 {[%clk 0:01:34.7]} 58. Bg6 {[%clk
0:00:27]} 58... a6 {[%clk 0:01:34.4]} 59. Be8 {[%clk 0:00:27.8]} 59... f5 {[%clk
0:01:35.9]} 60. Kc3 {[%clk 0:00:27.1]} 60... Bg7 {[%clk 0:01:35.5]} 61. Kd3
{[%clk 0:00:28.2]} 61... fxg4 {[%clk 0:01:35]} 62. fxg4 {[%clk 0:00:29.5]} 62...
Bf6 {[%clk 0:01:29.5]} 63. Ke3 {[%clk 0:00:29.6]} 63... Kc7 {[%clk 0:01:20.5]}
64. Kd3 {[%clk 0:00:30.1]} 64... Kd6 {[%clk 0:01:20.7]} 65. Ke3 {[%clk
0:00:31.1]} 65... Be7 {[%clk 0:01:22.3]} 66. Kd3 {[%clk 0:00:32.3]} 66... Ke6
{[%clk 0:01:24]} 67. Bc6 {[%clk 0:00:32.1]} 67... Bd8 {[%clk 0:01:22]} 68. Bb7
{[%clk 0:00:32.8]} 68... b5 {[%clk 0:01:23.1]} 69. axb5 {[%clk 0:00:24.8]} 69...
axb5 {[%clk 0:01:25]} 70. Bc6 {[%clk 0:00:25.9]} 70... b4 {[%clk 0:01:26.5]} 71.
Ba4 {[%clk 0:00:25.9]} 71... Bf6 {[%clk 0:01:27]} 72. Bd1 {[%clk 0:00:26.2]}
72... Kd6 {[%clk 0:01:27.4]} 73. Bb3 {[%clk 0:00:27.2]} 73... h5 {[%clk
0:01:26.7]} 74. gxh5 {[%clk 0:00:27.9]} 74... g4 {[%clk 0:01:28.3]} 75. Ke3
{[%clk 0:00:28.6]} 75... Bg5+ {[%clk 0:01:23.9]} 76. Kf2 {[%clk 0:00:28.4]}
76... Bf4 {[%clk 0:01:25.5]} 77. Bd1 {[%clk 0:00:28.1]} 77... g3+ {[%clk
0:01:26.9]} 78. Kf3 {[%clk 0:00:29.4]} 78... Ke6 {[%clk 0:01:27.5]} 79. h6
{[%clk 0:00:26]} 79... Kf7 {[%clk 0:01:19.7]} 80. Bb3 {[%clk 0:00:26.1]} 80...
Kg6 {[%clk 0:01:20.8]} 81. Bxd5 {[%clk 0:00:26.8]} 81... Bd6 {[%clk 0:01:22.1]}
82. Bb3 {[%clk 0:00:16.4]} 82... Kxh6 {[%clk 0:01:23.5]} 83. Bc2 {[%clk
0:00:16.8]} 83... Kg5 {[%clk 0:01:24.1]} 84. Bb3 {[%clk 0:00:17.8]} 84... Kh4
{[%clk 0:01:25]} 85. Be6 {[%clk 0:00:18.9]} 85... Bc7 {[%clk 0:01:26.2]} 86. Kg2
{[%clk 0:00:18.9]} 86... Bb6 {[%clk 0:01:27.5]} 87. d5 {[%clk 0:00:17.9]} 87...
Bc7 {[%clk 0:01:29]} 88. Bf5 {[%clk 0:00:17.8]} 88... b3 {[%clk 0:01:29.9]} 89.
Kf3 {[%clk 0:00:19.1]} 89... b2 {[%clk 0:01:31.1]} 90. Kg2 {[%clk 0:00:12.7]}
90... Bd6 {[%clk 0:01:32.2]} 91. Kf3 {[%clk 0:00:13.7]} 91... Bc7 {[%clk
0:01:31.5]} 92. Kg2 {[%clk 0:00:09.3]} 92... Kg5 {[%clk 0:01:32.5]} 93. Bb1
{[%clk 0:00:10.3]} 93... Kf4 {[%clk 0:01:34]} 94. Bc2 {[%clk 0:00:10.9]} 94...
Ke3 {[%clk 0:01:34.7]} 95. Bb1 {[%clk 0:00:11.5]} 95... Kd2 {[%clk 0:01:36.1]}
96. Bf5 {[%clk 0:00:12.2]} 96... Bd6 {[%clk 0:01:37.4]} 97. Be4 {[%clk
0:00:11.7]} 97... Kc1 {[%clk 0:01:38.7]} 98. Bf5 {[%clk 0:00:13]} 98... b1=Q
{[%clk 0:01:39.8]} 99. Bxb1 {[%clk 0:00:14.7]} 99... Kxb1 {[%clk 0:01:41.7]}
100. Kf3 {[%clk 0:00:16.4]} 100... Kc2 {[%clk 0:01:43.4]} 101. Kg2 {[%clk
0:00:18.1]} 101... Kd3 {[%clk 0:01:44.7]} 102. Kh1 {[%clk 0:00:20]} 102... Kd4
{[%clk 0:01:46.3]} 103. Kg2 {[%clk 0:00:21.9]} 103... Kxd5 {[%clk 0:01:48.2]}
104. Kh1 {[%clk 0:00:23.8]} 104... Ke5 {[%clk 0:01:50.1]} 105. Kg2 {[%clk
0:00:24.7]} 105... Kf5 {[%clk 0:01:51]} 106. Kh1 {[%clk 0:00:26.6]} 106... Kg4
{[%clk 0:01:51.9]} 107. Kg2 {[%clk 0:00:28.5]} 107... Be7 {[%clk 0:01:52.9]}
108. Kh1 {[%clk 0:00:30.4]} 108... Kh3 {[%clk 0:01:54.4]} 109. Kg1 {[%clk
0:00:31.7]} 109... Bc5+ {[%clk 0:01:54.5]} 110. Kf1 {[%clk 0:00:33.6]} 110...
g2+ {[%clk 0:01:56.2]} 0-1